{"text_format":"1","workbook":"xlsx","n_sheets":5,"sheets":["Меню","Заявка на договор ТП юр лицо","Заявка на договор ТП для ИП","Заявка на договор ТП физлицо","Списки"],"not_rendered":{"charts":0,"images":0,"macros":0,"external_links":0,"defined_names":5,"comments":0,"pivot_tables":0},"unopened":[],"bounds":{"document_bytes":16777216,"sheet_cells":100000,"rows_first":2000,"rows_last":500,"rows_between":2000,"halvings":0,"cell_chars":16384,"cell_head_chars":4096},"cells_cut":0,"cells_raw":0,"read":"whole","date_system":"1900"}

{"sheet":"Меню","index":0,"n_rows":9,"n_cols":2,"rows_kept":9,"cut":false,"hidden":false,"merged":[]}
[]
[null,"Выберите нужный вариант:"]
[null,"Заключение Договора о подключении к системе теплоснабжения АО \"УТЭ ВДНХ\""]
[null,"Форма заявки на подключение к системе теплоснабжения АО УТЭ ВДНХ\" в случае если Вы:"]
[null,"Юридическое лицо"]
[]
[null,"Индивидуальный предприниматель"]
[]
[null,"Физическое лицо"]

{"sheet":"Заявка на договор ТП юр лицо","index":1,"n_rows":147,"n_cols":12,"rows_kept":147,"cut":false,"hidden":false,"merged":[[132,2,132,9],[140,2,140,9],[141,2,141,9],[136,2,136,9],[137,2,137,9],[134,2,134,9],[135,2,135,9],[8,1,8,10],[133,2,133,9],[98,5,98,10],[99,5,99,10],[100,5,100,10],[101,5,101,10],[112,2,112,3],[112,6,112,8],[102,1,102,2],[102,3,102,4],[103,1,103,2],[103,3,103,4],[127,2,127,9],[52,9,52,10],[50,9,50,10],[86,1,86,10],[102,5,102,10],[124,2,124,9],[129,2,129,9],[91,1,93,10],[131,2,131,9],[128,2,128,9],[103,5,103,10],[119,1,119,10],[122,2,122,9],[130,2,130,9],[17,0,19,0],[144,2,144,3],[144,9,144,10],[107,1,107,2],[107,4,107,10],[25,0,26,0],[116,1,116,2],[143,9,143,10],[104,1,104,3],[104,9,104,10],[100,1,100,2],[100,3,100,4],[45,2,45,10],[121,2,121,9],[138,2,138,9],[139,2,139,9],[25,11,26,11],[101,1,101,2],[101,3,101,4],[80,1,85,10],[98,1,98,2],[98,3,98,4],[99,1,99,2],[99,3,99,4],[68,1,68,10],[30,2,30,4],[30,6,30,10],[42,2,42,5],[42,7,42,10],[94,1,94,10],[28,7,28,8],[72,1,74,10],[49,1,49,10],[89,1,89,10],[96,1,96,10],[47,3,47,4],[14,11,16,11],[16,2,16,10],[17,2,17,4],[17,6,17,10],[17,11,19,11],[18,3,18,4],[18,6,18,7],[19,9,19,10],[23,9,23,10],[20,2,20,7],[20,9,20,10],[22,2,22,7],[22,9,22,10],[14,1,14,10],[9,1,9,10],[11,1,12,1],[11,2,12,2],[11,6,12,6],[11,7,12,9],[11,3,12,5],[38,2,38,4],[38,7,38,10],[34,2,34,10],[36,6,36,10],[24,2,24,10],[25,9,25,10],[36,2,36,4],[26,2,26,10],[28,2,28,3],[32,2,32,4],[32,6,32,10]]}
[]
[null,null,null,null,null,null,null,null,null,null,null,"Комментарии для заполнения:"]
[]
[null,null,null,null,"ЗАЯВКА НА ПОДКЛЮЧЕНИЕ К СИСТЕМЕ ТЕПЛОСНАБЖЕНИЯ АО УТЭ ВДНХ\""]
[null,null,null,null,"(для юридического лица)"]
[]
[]
[]
[null,"Прошу заключить договор о подключении к системе теплоснабжения АО \"УТЭ ВДНХ\" объекта капитального строительства "]
[]
[null,"в связи с:"]
[null,"необходимостью подключения нового объекта",null,"увеличением тепловой нагрузки или тепловой мощности подключаемого объекта",null,null,null,"реконструкцией или модернизацией объекта без увеличения тепловой нагрузки или тепловой мощности",null,null,null,"Необходимо выбрать нужный вариант"]
[]
[]
[null,"1. Сведения о заявителе:"]
[]
[null,"Полное наименование организации"]
[]
[null,"Запись о включении в ЕГРЮЛ (ОГРН)","от",null,null,"№"]
[]
[null,"Ф.И.О. руководителя"]
[]
[null,"Должность руководителя"]
[]
[null,"Местонахождение"]
[]
[null,"Почтовый адрес"]
[]
[null,"ИНН",null,null,"КПП",null,"ОКПО"]
[]
[null,"р/с",null,null,null,"в"]
[]
[null,"к/с",null,null,null,"БИК"]
[]
[null,"Контактное лицо (Ф.И.О.)"]
[]
[null,"Контактный телефон организации",null,null,null,"Факс"]
[]
[null,"Контактный телефон мобильный",null,null,null,null,"e-mail"]
[]
[null,"2. Местонахождение подключаемого объекта:"]
[]
[null,"Город",null,null,null,null,"Район"]
[]
[]
[null,"Улица"]
[]
[null,"Дом",null,"Владение",null,null,"Корпус",null,null,"Строение"]
[]
[null,"3. Технические параметры подключаемого объекта:"]
[null,"3.1 Таблица тепловых нагрузок по видам потребления ",null,null,null,null,null,null,null,"поле не заполняется",null,"Таблица заполняется одна из двух представленных"]
[null,"(Заполняется одна из двух таблиц)"]
[null,"Для неподключенных строящихся (построенных) объектов:",null,null,null,null,null,null,null,"поле считается автоматически"]
[]
[null,"Наименование","Отопление","Вентиляция","Тепловые завесы","ГВС ср.",null,"Кондиционирование",null,"Всего (с учетом ГВС ср.)"]
[null,"Тепловая нагрузка, Гкал / час"]
[null,"Температурный график"]
[null,"Схема подключения ",null,null,null,null,null,null,null,null,null,"Необходимо выбрать из выпадающего списка"]
[]
[null,"Для реконструируемых объектов:"]
[]
[null,"Наименование","Отопление","Вентиляция","Тепловые завесы","ГВС ",null,"Кондиционирование",null,"Всего (с учетом ГВС )"]
[null,"Тепловая нагрузка существующая, Гкал / час"]
[null,"Тепловая нагрузка после реконструкции, Гкал / час"]
[null,"Тепловая нагрузка дополнительная, Гкал / час",null,null,null,null,null,null,null,null,null,"Считается как разница между Тепловая нагрузка после реконструкции и Тепловая нагрузка существующая"]
[null,"Температурный график"]
[null,"Схема подключения",null,null,null,null,null,null,null,null,null,"Необходимо выбрать из выпадающего списка"]
[]
[null,"ВАЖНО: Если в рамках заявки на подключение планируется заключение договора о подключении нескольких объектов капитального строительства, то заявка должна содержать в себе таблицы нагрузок по каждому объекту."]
[]
[null,"3.2 Режимы теплопотребления для подключаемого объекта:"]
[]
[null,null,null,null,null,null,null,null,null,null,null,"Необходимо выбрать из выпадающего списка"]
[]
[]
[null,"Если нужного варианта режима в списке нет, укажите собственный вариант"]
[]
[]
[null,"3.3 Расположение узла учета тепловой энергии и теплоносителей и контроля их качества"]
[]
[]
[]
[]
[]
[]
[]
[null,"Я хочу вместе с проектом Договора о подключении получить Технические условия на организацию учета тепловой энергии, теплоносителя:"]
[null,null,null,null,"Да",null,"Нет"]
[]
[null,"3.4 Требования к надежности теплоснабжения подключаемого объекта (допустимые перерывы в подаче теплоносителей  по продолжительности, периодам годам и др.)"]
[]
[null,null,null,null,null,null,null,null,null,null,null,"Необходимо выбрать из выпадающего списка"]
[]
[]
[null,"При этом для категорий надежности 2 и 3 предусматривается перерыв в теплоснабжении в летний период времени на срок не более 14 дней, обусловленный проведением гидравлических испытаний  "]
[]
[null,"3.5 Наличие и возможность использования собственных источников тепловой энергии (с указанием их мощностей и режимов работы)"]
[]
[null,"Наименование источника тепловой энергии",null,"Тепловая мощность,\nГкал / час",null,"Режим работы"]
[]
[]
[]
[]
[]
[]
[null,"3.6 Назначение объекта:"]
[]
[null,null,null,null,{"$f":"IF(B108=Списки!B25,Списки!C25,IF(B108=Списки!B26,Списки!C26,IF(B108=Списки!B27,Списки!C27,IF(B108=Списки!B28,Списки!C28,IF(B108=Списки!B29,Списки!C29,IF(B108=Списки!B30,Списки!C30,IF(B108=Списки!B31,Списки!C31,IF(B108=Списки!B32,Списки!C32,IF(B108=Списки!B33,Списки!C33,IF(B108=Списки!B34,Списки!C34,IF(B108=Списки!B35,Списки!C35,IF(B108=Списки!B36,Списки!C36,IF(B108=Списки!B37,Списки!C37,IF(B108=Списки!B38,Списки!C38,IF(B108=Списки!B39,Списки!C39,IF(B108=Списки!B40,Списки!C40,IF(B108=Списки!B41,Списки!C41,IF(B108=Списки!B42,Списки!C42,IF(B108=Списки!B43,Списки!C43,IF(B108=Списки!B44,Списки!C44,IF(B108=Списки!B45,Списки!C45,IF(B108=Списки!B46,Списки!B46,IF(B108=Списки!B47,Списки!C47,IF(B108=Списки!B48,Списки!C48,))))))))))))))))))))))))","v":"-"},null,null,null,null,null,null,"Необходимо выбрать из выпадающего списка"]
[]
[]
[null,"4. Технические условия (если ранее выдавались):"]
[]
[null,"от","дд.мм.гг",null,null,"№"]
[]
[null,"5. Планируемый срок ввода объекта в эксплуатацию:"]
[]
[null,"2018-11-01"]
[]
[]
[null,"6. О готовности проекта договора о подключении к системам теплоснабжения прошу уведомить меня:",null,null,null,null,null,null,null,null,null,"Необходимо выбрать нужный вариант"]
[]
[null,"по телефону:"]
[null,"по электронной почте по адресу:"]
[]
[null,null,"В случае если Заявитель будет недоступен по вышеуказанному контакту, Договор о подключении к системе теплоснабжения АО \"УТЭ ВДНХ\" будет отправлен почтой по адресу, указанному в Разделе 1 настоящего Запроса"]
[]
[]
[null,null,"Перечень необходимых документов для заключения Договора о подключении к системе теплоснабжения АО \"УТЭ ВДНХ\":"]
[null,1,"Заверенные копии учредительных документов:"]
[null,"-","устав юридического лица (в том числе все изменения и дополнения к нему);"]
[null,"-","свидетельство о государственной регистрации юридического лица;"]
[null,"-","свидетельство о внесении записи в единый государственный реестр юридических лиц о юридическом лице (далее – ЕГРЮЛ), зарегистрированном до 01.07.2002, в случае создания контрагента до 01.07.2002;"]
[null,"-","свидетельство о постановке юридического лица на учет в налоговом органе;"]
[null,"-","выписка из ЕГРЮЛ. Дата выдачи выписки из ЕГРИП не должна превышать 30 дней на дату представления;"]
[null,"-","документы, подтверждающие полномочия лица, действующего от имени заявителя."]
[null,2,"Документы, подтверждающие полномочия лица, подписавшего запрос:"]
[null,"-","документ о назначении руководителя юридического лица;"]
[null,"-","приказ о вступлении в должность руководителя юридического лица;"]
[null,"-","доверенность представителя контрагента на право подписания запроса (в случае подписания запроса лицом, действующим на основании доверенности)."]
[null,3,"Копии правоустанавливающих документов, подтверждающих право собственности или иное законное право заявителя на подключаемый объект или земельный участок, права на которые не зарегистрированы в Едином государственном реестре прав на недвижимое имущество и сделок с ним (в случае если такие права зарегистрированы в указанном реестре, представляются копии свидетельств о государственной регистрации прав на указанный подключаемый объект или земельный участок)."]
[null,4,"Ситуационный план расположения подключаемого объекта с привязкой к территории населенного пункта или элементам территориального деления в схеме теплоснабжения."]
[null,5,"Топографическая карта земельного участка в масштабе 1:500 (для квартальной застройки 1:2000) в электронном виде в фрмате PDF с указанием всех наземных и подземных коммуникаций и сооружений."]
[]
[null,"Заявитель"]
[null,null,"ФИО",null,null,null,"Подпись",null,null,"Дата"]
[]
[null,"М.П."]

{"sheet":"Заявка на договор ТП для ИП","index":2,"n_rows":141,"n_cols":12,"rows_kept":141,"cut":false,"hidden":false,"merged":[[137,9,137,10],[138,2,138,3],[138,9,138,10],[133,2,133,9],[134,2,134,9],[135,2,135,9],[130,2,130,9],[131,2,131,9],[132,2,132,9],[122,2,122,9],[124,2,124,9],[127,2,127,9],[128,2,128,9],[129,2,129,9],[118,1,118,10],[120,2,120,9],[111,2,111,3],[111,6,111,8],[115,1,115,2],[99,1,99,2],[99,3,99,4],[99,5,99,10],[106,1,106,2],[106,4,106,10],[100,1,100,2],[100,3,100,4],[100,5,100,10],[101,1,101,2],[101,3,101,4],[101,5,101,10],[102,1,102,2],[102,3,102,4],[102,5,102,10],[103,1,103,3],[103,9,103,10],[97,1,97,2],[97,3,97,4],[97,5,97,10],[98,1,98,2],[98,3,98,4],[98,5,98,10],[71,1,73,10],[95,1,95,10],[85,1,85,10],[36,2,36,4],[36,7,36,10],[40,2,40,5],[40,7,40,10],[44,2,44,10],[48,1,48,10],[49,9,49,10],[51,9,51,10],[67,1,67,10],[79,1,84,10],[88,1,88,10],[90,1,92,10],[93,1,93,10],[34,2,34,4],[34,6,34,10],[23,0,24,0],[23,9,23,10],[23,11,24,11],[24,2,24,10],[26,2,26,3],[26,7,26,8],[28,2,28,4],[28,6,28,10],[30,2,30,4],[30,6,30,10],[32,2,32,10],[22,2,22,10],[12,11,14,11],[14,2,14,10],[15,0,17,0],[15,2,15,4],[15,6,15,10],[15,11,17,11],[16,3,16,4],[16,6,16,7],[17,9,17,10],[12,1,12,10],[18,2,18,7],[18,9,18,10],[20,2,20,7],[20,9,20,10],[21,9,21,10],[1,7,1,10],[9,3,10,5],[6,1,6,10],[7,1,7,10],[9,1,10,1],[9,2,10,2],[9,6,10,6],[9,7,10,9]]}
[]
[null,null,null,null,null,null,null,null,null,null,null,"Комментарии для заполнения:"]
[]
[null,null,null,null,"ЗАЯВКА НА ПОДКЛЮЧЕНИЕ К СИСТЕМЕ ТЕПЛОСНАБЖЕНИЯ АО \"УТЭ ВДНХ\""]
[null,null,null,null,"(для индивидуального предпринимателя)"]
[]
[null,"Прошу  заключить договор о подключении к системе теплоснабжения АО \"УТЭ ВДНХ\" объекта капитального строительства "]
[]
[null,"в связи с:"]
[null,"необходимостью подключения нового объекта",null,"увеличением тепловой нагрузки или тепловой мощности подключаемого объекта",null,null,null,"реконструкцией или модернизацией объекта без увеличения тепловой нагрузки или тепловой мощности",null,null,null,"Необходимо выбрать нужный вариант"]
[]
[]
[null,"1. Сведения о заявителе:"]
[]
[null,"Полное наименование организации"]
[]
[null,"Запись о включении в ЕГРИП (ОГРНИП)","от",null,null,"№"]
[]
[null,"Ф.И.О. руководителя"]
[]
[null,"Должность руководителя"]
[]
[null,"Местонахождение","Индекс, город, улица, дом, строение, корпус, владение"]
[]
[null,"Почтовый адрес","Индекс, город, улица, дом, строение, корпус, владение"]
[]
[null,"ИНН",null,null,"КПП",null,"ОКПО"]
[]
[null,"р/с",null,null,null,"в"]
[]
[null,"к/с",null,null,null,"БИК"]
[]
[null,"Контактное лицо (Ф.И.О.)"]
[]
[null,"Контактный телефон организации",null,null,null,"Факс"]
[]
[null,"Контактный телефон мобильный",null,null,null,null,"e-mail"]
[]
[null,"2. Местонахождение подключаемого объекта:"]
[]
[null,"Город"]
[]
[]
[]
[null,"Улица"]
[]
[null,"Дом",null,null,"Владение",null,"Корпус",null,null,"Строение"]
[]
[null,"3. Технические параметры подключаемого объекта:"]
[null,"3.1 Таблица тепловых нагрузок по видам потребления ",null,null,null,null,null,null,null,"поле не заполняется",null,"Таблица заполняется одна из двух представленных"]
[null,"(Заполняется одна из двух таблиц)"]
[null,"Для неподключенных строящихся (построенных) объектов:",null,null,null,null,null,null,null,"поле считается автоматически"]
[]
[null,"Наименование","Отопление","Вентиляция","Тепловые завесы","ГВС ",null,"Кондиционирование",null,"Всего (с учетом ГВС )"]
[null,"Тепловая нагрузка, Гкал / час",0,0,0,0,null,0,null,{"$f":"C55+D55+E55+F55+H55+I55","v":0}]
[null,"Температурный график"]
[null,"Схема подключения ",null,null,null,null,null,null,null,null,null,"Необходимо выбрать из выпадающего списка"]
[]
[null,"Для реконструируемых объектов:"]
[]
[null,"Наименование","Отопление","Вентиляция","Тепловые завесы","ГВС ",null,"Кондиционирование",null,"Всего (с учетом ГВС )"]
[null,"Тепловая нагрузка существующая, Гкал / час",0,0,0,0,null,0,null,{"$f":"C62+D62+E62+F62+H62+I62","v":0}]
[null,"Тепловая нагрузка после реконструкции, Гкал / час",0,0,0,0,null,0,null,{"$f":"C63+D63+E63+F63+H63+I63","v":0}]
[null,"Тепловая нагрузка дополнительная, Гкал / час",{"$f":"C63-C62","v":0},{"$f":"D63-D62","v":0},0,0,null,0,null,{"$f":"J63-J62","v":0},null,"Считается как разница между Тепловая нагрузка после реконструкции и Тепловая нагрузка существующая"]
[null,"Температурный график"]
[null,"Схема подключения",null,null,null,null,null,null,null,null,null,"Необходимо выбрать из выпадающего списка"]
[]
[null,"ВАЖНО: Если в рамках заявки на подключение планируется заключение договора о подключении нескольких объектов капитального строительства, то заявка должна содержать в себе таблицы нагрузок по каждому объекту."]
[]
[null,"3.2 Режимы теплопотребления для подключаемого объекта:"]
[]
[null,null,null,null,null,null,null,null,null,null,null,"Необходимо выбрать из выпадающего списка"]
[]
[]
[null,"Если нужного варианта режима в списке нет, укажите собственный вариант"]
[]
[]
[null,"3.3 Расположение узла учета тепловой энергии и теплоносителей и контроля их качества"]
[]
[]
[]
[]
[]
[]
[]
[null,"Я хочу вместе с проектом Договора о подключении получить Технические условия на организацию учета тепловой энергии, теплоносителя:"]
[null,null,null,null,"Да",null,"Нет"]
[]
[null,"3.4 Требования к надежности теплоснабжения подключаемого объекта (допустимые перерывы в подаче теплоносителей  по продолжительности, периодам годам и др.)"]
[]
[null,null,null,null,null,null,null,null,null,null,null,"Необходимо выбрать из выпадающего списка"]
[]
[]
[null,"При этом для категорий надежности 2 и 3 предусматривается перерыв в теплоснабжении в летний период времени на срок не более 14 дней, обусловленный проведением гидравлических испытаний  "]
[]
[null,"3.5 Наличие и возможность использования собственных источников тепловой энергии (с указанием их мощностей и режимов работы)"]
[]
[null,"Наименование источника тепловой энергии",null,"Тепловая мощность,\nГкал / час",null,"Режим работы"]
[]
[]
[]
[]
[]
[]
[null,"3.6 Назначение объекта:"]
[]
[null,null,null,null,{"$f":"IF(B107=Списки!B25,Списки!C25,IF(B107=Списки!B26,Списки!C26,IF(B107=Списки!B27,Списки!C27,IF(B107=Списки!B28,Списки!C28,IF(B107=Списки!B29,Списки!C29,IF(B107=Списки!B30,Списки!C30,IF(B107=Списки!B31,Списки!C31,IF(B107=Списки!B32,Списки!C32,IF(B107=Списки!B33,Списки!C33,IF(B107=Списки!B34,Списки!C34,IF(B107=Списки!B35,Списки!C35,IF(B107=Списки!B36,Списки!C36,IF(B107=Списки!B37,Списки!C37,IF(B107=Списки!B38,Списки!C38,IF(B107=Списки!B39,Списки!C39,IF(B107=Списки!B40,Списки!C40,IF(B107=Списки!B41,Списки!C41,IF(B107=Списки!B42,Списки!C42,IF(B107=Списки!B43,Списки!C43,IF(B107=Списки!B44,Списки!C44,IF(B107=Списки!B45,Списки!C45,IF(B107=Списки!B46,Списки!B46,IF(B107=Списки!B47,Списки!C47,IF(B107=Списки!B48,Списки!C48,))))))))))))))))))))))))","v":"-"},null,null,null,null,null,null,"Необходимо выбрать из выпадающего списка"]
[]
[]
[null,"5. Технические условия (если ранее выдавались):"]
[]
[null,"от","дд.мм.гг",null,null,"№"]
[]
[null,"6. Планируемый срок ввода объекта в эксплуатацию:"]
[]
[null,"мм.гг"]
[]
[]
[null,"10. О готовности проекта договора о подключении к системам теплоснабжения прошу уведомить меня:",null,null,null,null,null,null,null,null,null,"Необходимо выбрать нужный вариант"]
[]
[null,"по телефону:"]
[]
[null,"по электронной почте по адресу:"]
[]
[null,null,"В случае если Заявитель будет недоступен по вышеуказанному контакту, Договор о подключении к системе теплоснабжения АО \"УТЭ ВДНХ\" будет отправлен почтой по адресу, указанному в Разделе 1 настоящего Запроса"]
[]
[]
[null,null,"Перечень необходимых документов для заключения Договора о подключении к системе теплоснабжения АО \"УТЭ ВДНХ\":"]
[null,1,"Заверенные копии учредительных документов:"]
[null,"-","свидетельство о государственной регистрации физического лица в качестве индивидуального предпринимателя;"]
[null,"-","свидетельство о постановке на учет в налоговом органе индивидуального предпринимателя;"]
[null,"-","выписка из единого государственного реестра индивидуальных предпринимателей (далее – ЕГРИП). Дата выдачи выписки из ЕГРИП не должна превышать 30 дней на дату представления."]
[null,2,"Доверенность представителя контрагента на право подписания запроса (в случае подписания запроса лицом, действующим на основании доверенности)."]
[null,3,"Копии правоустанавливающих документов, подтверждающих право собственности или иное законное право заявителя на подключаемый объект или земельный участок, права на которые не зарегистрированы в Едином государственном реестре прав на недвижимое имущество и сделок с ним (в случае если такие права зарегистрированы в указанном реестре, представляются копии свидетельств о государственной регистрации прав на указанный подключаемый объект или земельный участок)."]
[null,4,"Ситуационный план расположения подключаемого объекта с привязкой к территории населенного пункта или элементам территориального деления в схеме теплоснабжения."]
[null,5,"Топографическая карта земельного участка в масштабе 1:500 (для квартальной застройки 1:2000) в электронном виде в фрмате PDF с указанием всех наземных и подземных коммуникаций и сооружений."]
[]
[null,"Заявитель",null,null,null,null,null,null,null,"дд.мм.гг"]
[null,null,"ФИО",null,null,null,"Подпись",null,null,"Дата"]
[]
[null,"М.П."]

{"sheet":"Заявка на договор ТП физлицо","index":3,"n_rows":134,"n_cols":12,"rows_kept":134,"cut":false,"hidden":false,"merged":[[130,9,130,10],[131,2,131,3],[131,9,131,10],[16,2,16,7],[17,9,17,10],[18,2,18,3],[18,5,18,6],[18,9,18,10],[19,9,19,10],[126,2,126,9],[127,2,127,9],[128,2,128,9],[129,2,129,9],[119,2,119,9],[121,2,121,9],[124,2,124,9],[125,2,125,9],[116,1,116,10],[118,2,118,9],[109,2,109,3],[109,6,109,8],[113,1,113,2],[97,1,97,2],[97,3,97,4],[97,5,97,10],[104,1,104,2],[104,4,104,10],[98,1,98,2],[98,3,98,4],[98,5,98,10],[99,1,99,2],[99,3,99,4],[99,5,99,10],[100,1,100,2],[100,3,100,4],[100,5,100,10],[101,1,101,3],[101,9,101,10],[91,1,91,10],[95,1,95,2],[95,3,95,4],[95,5,95,10],[96,1,96,2],[96,3,96,4],[96,5,96,10],[69,1,71,10],[93,1,93,10],[83,1,83,10],[12,1,12,10],[12,11,14,11],[14,2,14,10],[40,2,40,5],[40,7,40,10],[42,2,42,10],[46,1,46,10],[47,9,47,10],[49,9,49,10],[65,1,65,10],[77,1,82,10],[86,1,86,10],[88,1,90,10],[15,0,36,0],[15,2,15,4],[15,6,15,10],[15,11,36,11],[29,2,29,4],[29,6,29,10],[34,2,34,4],[36,2,36,4],[36,7,36,10],[20,2,20,10],[21,9,21,10],[22,2,22,10],[25,2,25,3],[25,7,25,8],[27,2,27,4],[27,6,27,10],[1,7,1,10],[9,3,10,5],[7,1,7,10],[9,1,10,1],[9,2,10,2],[9,6,10,6],[9,7,10,9]]}
[]
[null,null,null,null,null,null,null,null,null,null,null,"Комментарии для заполнения:"]
[]
[null,null,null,null,"ЗАЯВКА НА ПОДКЛЮЧЕНИЕ К СИСТЕМЕ ТЕПЛОСНАБЖЕНИЯ АО \"УТЭ ВДНХ\""]
[null,null,null,null,"(для физического лица)"]
[]
[null,"Прошу  заключить договор о подключении к системе теплоснабжения АО \"УТЭ ВДНХ\" объекта капитального строительства "]
[]
[null,"в связи с:"]
[null,"необходимостью подключения нового объекта",null,"увеличением тепловой нагрузки или тепловой мощности подключаемого объекта",null,null,null,"реконструкцией или модернизацией объекта без увеличения тепловой нагрузки или тепловой мощности",null,null,null,"Необходимо выбрать нужный вариант"]
[]
[]
[null,"1. Сведения о заявителе:"]
[]
[null,"ФИО"]
[]
[null,"Наименование документа, \nудостоверяюшего личность"]
[]
[null,"Серия",null,null,"№",null,null,null,"Дата выдачи","дд.мм.гг"]
[]
[null,"Местонахождение","Индекс, город, улица, дом, строение, корпус, владение"]
[]
[null,"Почтовый адрес","Индекс, город, улица, дом, строение, корпус, владение"]
[]
[]
[null,"ИНН",null,null,"КПП",null,"ОКПО"]
[]
[null,"р/с",null,null,null,"в"]
[]
[null,"к/с",null,null,null,"БИК"]
[]
[null,"Контактное лицо (Ф.И.О.)"]
[null,"Контактное лицо (Ф.И.О.)"]
[]
[null,"Контактный телефон организации",null,null,null,"Факс"]
[]
[null,"Контактный телефон мобильный",null,null,null,null,"e-mail"]
[]
[null,"2. Местонахождение подключаемого объекта:"]
[]
[null,"Город",null,null,null,null,"Район"]
[]
[null,"Улица"]
[]
[null,"Дом",null,null,"Владение",null,"Корпус",null,null,"Строение"]
[]
[null,"3. Технические параметры подключаемого объекта:"]
[null,"3.1 Таблица тепловых нагрузок по видам потребления ",null,null,null,null,null,null,null,"поле не заполняется",null,"Таблица заполняется одна из двух представленных"]
[null,"(Заполняется одна из двух таблиц)"]
[null,"Для неподключенных строящихся (построенных) объектов:",null,null,null,null,null,null,null,"поле считается автоматически"]
[]
[null,"Наименование","Отопление","Вентиляция","Тепловые завесы","ГВС ",null,"Кондиционирование",null,"Всего (с учетом ГВС )"]
[null,"Тепловая нагрузка, Гкал / час",0,0,0,0,null,0,null,{"$f":"C53+D53+E53+F53+H53+I53","v":0}]
[null,"Температурный график"]
[null,"Схема подключения ",null,null,null,null,null,null,null,null,null,"Необходимо выбрать из выпадающего списка"]
[]
[null,"Для реконструируемых объектов:"]
[]
[null,"Наименование","Отопление","Вентиляция","Тепловые завесы","ГВС ",null,"Кондиционирование",null,"Всего (с учетом ГВС)"]
[null,"Тепловая нагрузка существующая, Гкал / час",0,0,0,0,null,0,null,{"$f":"C60+D60+E60+F60+H60+I60","v":0}]
[null,"Тепловая нагрузка после реконструкции, Гкал / час",0,0,0,0,null,0,null,{"$f":"C61+D61+E61+F61+H61+I61","v":0}]
[null,"Тепловая нагрузка дополнительная, Гкал / час",{"$f":"C61-C60","v":0},{"$f":"D61-D60","v":0},0,0,null,0,null,{"$f":"J61-J60","v":0},null,"Считается как разница между Тепловая нагрузка после реконструкции и Тепловая нагрузка существующая"]
[null,"Температурный график"]
[null,"Схема подключения",null,null,null,null,null,null,null,null,null,"Необходимо выбрать из выпадающего списка"]
[]
[null,"ВАЖНО: Если в рамках заявки на подключение планируется заключение договора о подключении нескольких объектов капитального строительства, то заявка должна содержать в себе таблицы нагрузок по каждому объекту."]
[]
[null,"3.2 Режимы теплопотребления для подключаемого объекта:"]
[]
[null,null,null,null,null,null,null,null,null,null,null,"Необходимо выбрать из выпадающего списка"]
[]
[]
[null,"Если нужного варианта режима в списке нет, укажите собственный вариант"]
[]
[]
[null,"3.3 Расположение узла учета тепловой энергии и теплоносителей и контроля их качества"]
[]
[]
[]
[]
[]
[]
[]
[null,"Я хочу вместе с проектом Договора о подключении получить Технические условия на организацию учета тепловой энергии, теплоносителя:"]
[null,null,null,null,"Да",null,"Нет"]
[]
[null,"3.4 Требования к надежности теплоснабжения подключаемого объекта (допустимые перерывы в подаче теплоносителей  по продолжительности, периодам годам и др.)"]
[]
[null,null,null,null,null,null,null,null,null,null,null,"Необходимо выбрать из выпадающего списка"]
[]
[]
[null,"При этом для категорий надежности 2 и 3 предусматривается перерыв в теплоснабжении в летний период времени на срок не более 14 дней, обусловленный проведением гидравлических испытаний  "]
[]
[null,"3.5 Наличие и возможность использования собственных источников тепловой энергии (с указанием их мощностей и режимов работы)"]
[]
[null,"Наименование источника тепловой энергии",null,"Тепловая мощность,\nГкал / час",null,"Режим работы"]
[]
[]
[]
[]
[]
[]
[null,"3.6 Назначение объекта:"]
[]
[null,null,null,null,{"$f":"IF(B105=Списки!B25,Списки!C25,IF(B105=Списки!B26,Списки!C26,IF(B105=Списки!B27,Списки!C27,IF(B105=Списки!B28,Списки!C28,IF(B105=Списки!B29,Списки!C29,IF(B105=Списки!B30,Списки!C30,IF(B105=Списки!B31,Списки!C31,IF(B105=Списки!B32,Списки!C32,IF(B105=Списки!B33,Списки!C33,IF(B105=Списки!B34,Списки!C34,IF(B105=Списки!B35,Списки!C35,IF(B105=Списки!B36,Списки!C36,IF(B105=Списки!B37,Списки!C37,IF(B105=Списки!B38,Списки!C38,IF(B105=Списки!B39,Списки!C39,IF(B105=Списки!B40,Списки!C40,IF(B105=Списки!B41,Списки!C41,IF(B105=Списки!B42,Списки!C42,IF(B105=Списки!B43,Списки!C43,IF(B105=Списки!B44,Списки!C44,IF(B105=Списки!B45,Списки!C45,IF(B105=Списки!B46,Списки!B46,IF(B105=Списки!B47,Списки!C47,IF(B105=Списки!B48,Списки!C48,))))))))))))))))))))))))","v":"-"},null,null,null,null,null,null,"Необходимо выбрать из выпадающего списка"]
[]
[]
[null,"4. Технические условия (если ранее выдавались):"]
[]
[null,"от","дд.мм.гг",null,null,"№"]
[]
[null,"5. Планируемый срок ввода объекта в эксплуатацию:"]
[]
[null,"мм.гг"]
[]
[]
[null,"6. О готовности проекта договора о подключении к системам теплоснабжения прошу уведомить меня:",null,null,null,null,null,null,null,null,null,"Необходимо выбрать нужный вариант"]
[]
[null,"по телефону:"]
[null,"по электронной почте по адресу:"]
[]
[null,null,"В случае если Заявитель будет недоступен по вышеуказанному контакту, Договор о подключении к системе теплоснабжения АО \"УТЭ ВДНХ\" будет отправлен почтой по адресу, указанному в Разделе 1 настоящего Запроса"]
[]
[]
[null,null,"Перечень необходимых документов для заключения Договора о подключении к системе теплоснабжения АО \"УТЭ ВДНХ\":"]
[null,1,"Копия паспорта"]
[null,2,"Доверенность представителя контрагента на право подписания запроса (в случае подписания запроса лицом, действующим на основании доверенности)."]
[null,3,"Копии правоустанавливающих документов, подтверждающих право собственности или иное законное право заявителя на подключаемый объект или земельный участок, права на которые не зарегистрированы в Едином государственном реестре прав на недвижимое имущество и сделок с ним (в случае если такие права зарегистрированы в указанном реестре, представляются копии свидетельств о государственной регистрации прав на указанный подключаемый объект или земельный участок)."]
[null,4,"Ситуационный план расположения подключаемого объекта с привязкой к территории населенного пункта или элементам территориального деления в схеме теплоснабжения."]
[null,5,"Топографическая карта земельного участка в масштабе 1:500 (для квартальной застройки 1:2000) в электронном виде в формате PDF с указанием всех наземных и подземных коммуникаций и сооружений (не прилагается в случае, если заявителем является физическое лицо, осуществляющее создание (реконструкцию) объекта индивидуального жилищного строительства)."]
[null,"Заявитель",null,null,null,null,null,null,null,"дд.мм.гг"]
[null,null,"ФИО",null,null,null,"Подпись",null,null,"Дата"]
[]
[null,"М.П."]

{"sheet":"Списки","index":4,"n_rows":73,"n_cols":3,"rows_kept":73,"cut":false,"hidden":true,"merged":[]}
[]
[null,"Схема подключения"]
[]
[null,"Зависимая"]
[null,"Независимая"]
[]
[null,"Округ"]
[]
[null,"ЦАО"]
[null,"САО"]
[null,"СВАО"]
[null,"ВАО"]
[null,"ЮВАО"]
[null,"ЮАО"]
[null,"ЮЗАО"]
[null,"ЗАО"]
[null,"СЗАО"]
[null,"Новомосковский АО"]
[null,"Троицкий АО"]
[null,"Зеленоградский АО"]
[]
[null,"Назначение объекта"]
[]
["№","Категория","Комментарий"]
[null,null,"-"]
[1,"Жилые дома","Жилые дома"]
[2,"Общественные и административно-бытовые помещения","Гостиницы, общежития, пансионаты, д/о, мотели"]
[3,"ДОУ","Детсады, ясли"]
[4,"Объекты спортивного назначения","Стадионы, ФОК, бассейны, спортзалы, спортшколы"]
[5,"Здравоохранение","Больницы, родильные дома, поликлиники, амбулатории, госпитали, морги"]
[6,"Образование","Школы, интернаты, дом ребенка, ПТУ, училища, Вузы, амбулатории"]
[7,"Административно-офисные помещения","МФК, офисы, деловые центры, типографии, почта"]
[8,"Социально-бытовые объекты","Прачечные, химчистки, душевые, бани,парикмахерские, общественные туалеты"]
[9,"Объекты торгового назначения","Магазин, торговые центры, торговые залы, аптеки, вещевой рынок, ларьки, торговые палатки"]
[10,"Досугово-развлекательные учреждения","Дом культуры, интернет-кафе, дискотеки, клубы"]
[11,"Культурные объекты","Театры, кинотеатры, музеи, постоянно действующие выставочные комплексы (центры)"]
[12,"Предприятия общественного питания","Столовые, кафе, рестораны, пиццерии, хлебопекарня"]
[13,"Объекты производственного назначения","Заводы, цеха, станции, тепловые пункты, депо, гаражи,ремонтно-механические мастерские, склады, АЗС,СТО"]
[14,"Объекты городской инфраструктуры","Вокзалы, парки, оранжереи, теплицы, сельхоз.рынки"]
[15,"Транспортная инфраструктура","Дороги, эстакады, мосты, тоннели, путепроводы, жел.дор.пути"]
[16,"Религиозные сооружения","Храм, церковь, синагога, мечеть, монастырь, часовня, кирха"]
[17,"Объекты защиты населения","Полиция, мчс, военные, ГИБДД, вневедомственная охрана, ЧОПы, военная полиция"]
[18,"Объекты складского назначения","Склады, навесы, ангары, сараи"]
[19,"Нежилые помещения","Объекты заявлены как нежилые помещение без уточнения дальнейшего назначения"]
[20,"Комплексная застройка","Большая застройка, куда попадают  объекты из разных категорий"]
[21,"Временные объекты","бытовки, строительные городки, объекты механизации"]
[22,"Объекты незавершенного строительства","незавершенные объекты для проведения отделочных и пуско-наладочных работ"]
[23,"Прочее","Все, что не попало в категории выше"]
[]
[null,"Отделения сбыта"]
[]
[null,"Отделение сбыта №1 - г. Москва, ул. Складочная, д. 1А, стр. 1"]
[null,"Отделение сбыта №2 - г. Москва, ул. Бибиревская, д. 8 кор. 1"]
[null,"Отделение сбыта №3 - г. Москва, ул. Шарикоподшипниковская, д.1"]
[null,"Отделение сбыта №4 - г.Москва, пр. Андропова, д. 36 к. 2"]
[null,"Отделение сбыта №5 - г.Москва, ул.Героев Панфиловцев, д.10, к. 1"]
[null,"Отделение сбыта №6 - г.Зеленоград, корп. 1111А"]
[null,"Отделение сбыта №7 - г.Московский, 3 мкр., д.2а"]
[]
[]
[null,"Режим теплопотрбления"]
[]
[null,"непрерывный"]
[null,"односменный"]
[null,"двухсменный"]
[null,"сезонный"]
[]
[]
[null,"Требования к надежности"]
[]
[null,"1 категория - потребители, не допускающие перерывов в подаче расчетного количества теплоты и снижения температуры воздуха в помещениях ниже расчетных"]
[null,"2 категория - потребители, допускающие снижение температуры в отапливаемых помещениях на период ликвидации аварии, но не более 54 ч: \n-        жилых и общественных зданий до 12 °С; \n-        промышленных зданий до 8 °С  "]
[null,"3 категория - остальные потребители"]